Cogmind - Beta 13 @@@ ROGUE MODE // 2024.04.03 @ 13:22:17 Player: Hachimocho Result: Destroyed by G-34 Mercenary with Small Laser Performance ------------- Evolutions (1) 500 Regions Visited (3) 600 Robots Destroyed (19) 95 Value Destroyed (711) 711 Prototype IDs (1) 20 Alien Tech Used (0) 0 Bonus (0) 0 TOTAL SCORE: 1926 Bonus ------- None Cogmind --------- Core Integrity 0/400 Matter 300/300 Energy 100/100 System Corruption 7% Temperature Cool (12) Movement Core (100) Ox1 Location -9/Storage Parts ------- > --- POWER (1) -------- (None) > --- PROPULSION (4) --- (None) > --- UTILITY (2) ------ Improved Heat Sink Small Storage Unit > --- WEAPON (2) ------- (None) > --- INVENTORY (8) ---- Ion Engine Peak State ------------ > --- POWER ------------ Heavy Ion Engine > --- PROPULSION ------- Aluminum Leg Aluminum Leg Aluminum Leg Aluminum Leg > --- UTILITY ---------- Improved Heat Sink Small Storage Unit > --- WEAPON ----------- Particle Gun Particle Gun > --- INVENTORY -------- Improved Ion Engine Light Treads Light Treads Improved Heat Sink Particle Gun Assault Rifle Light Assault Rifle [Rating: 16] Favorites ----------- Power Heavy Ion Engine Engine Heavy Ion Engine Power Core Light Nuclear Core Propulsion Aluminum Leg Treads Light Treads Leg Aluminum Leg Utility Small Storage Unit Device Improved Heat Sink Storage Small Storage Unit Protection Propulsion Shielding Weapon Particle Gun Energy Gun Particle Gun Ballistic Gun Light Assault Rifle Build | -11 -10 -9 -9 ------- Run | Yrd Mat Mat Sto Slots Evolved 2 | . . 2 . Power . | . . . . Propulsion 2 | . . 2 . Utility . | . . . . Weapon . | . . . . Parts Attached 27 | 6 7 14 . Power 7 | 1 2 4 . Engine 6 | 1 1 4 . Core 1 | . 1 . . Reactor . | . . . . Propulsion 6 | 2 . 4 . Treads 2 | . . 2 . Leg 4 | 2 . 2 . Wheel . | . . . . Hover . | . . . . Flight . | . . . . Utility 4 | 1 2 1 . Device 2 | . 1 1 . Storage 1 | 1 . . . Processor . | . . . . Hackware . | . . . . Protection 1 | . 1 . . Artifact . | . . . . Weapon 10 | 2 3 5 . Energy Gun 7 | 1 3 3 . Energy Cannon . | . . . . Ballistic Gun 3 | 1 . 2 . Ballistic Cannon . | . . . . Launcher . | . . . . Special Weapon . | . . . . Impact Weapon . | . . . . Slashing Weapon . | . . . . Piercing Weapon . | . . . . Special Melee Weapon . | . . . . Unidentified Prototypes 1 | . 1 . . Parts Lost 17 | . 1 11 5 Power 3 | . . 2 1 Propulsion 6 | . . 4 2 Utility 2 | . 1 1 . Weapon 6 | . . 4 2 Highest Loss Streak 7 | . 1 7 5 To Critical Strikes . | . . . . Average Slot Usage (%) 83 | . 94 79 73 Engine 8 | . 11 6 9 Core 3 | . 2 4 . Treads 4 | . . 3 20 Leg 21 | . 28 21 . Device 7 | . 1 10 11 Storage 12 | . 14 11 11 Protection 2 | . 6 . . Energy Gun 18 | . 27 16 . Ballistic Gun 5 | . . 4 20 Naked Turns . | . . . . Heaviest Build 20 | 12 20 20 16 Greatest Support 40 | 20 20 40 40 Greatest Overweight (x) 3 | 3 . . . Average Overweight (x) . | . . . . Largest Inventory Capacity 8 | 8 8 8 8 Average Capacity 7 | 7 8 8 8 Most Carried 8 | 4 8 8 1 Average Carried 5 | 2 7 5 1 Final Capacity 8 | 8 8 8 8 Final Carried 8 | 4 8 1 1 Class Distribution -------------------- 100% | Mutant Dominant Class ---------------- Mutant | -10/Materials Mutant | -9/Materials Mutant | -9/Storage Resources | -11 -10 -9 -9 ----------- Run | Yrd Mat Mat Sto Matter Collected 492 | 224 101 150 17 Remotely . | . . . . Salvage Created 732 | . 289 418 25 Parts 28 | . 13 15 . Haulers Intercepted . | . . . . Recyclers Shooed . | . . . . Parts Field Recycled . | . . . . Retrieved Matter . | . . . . Parts Self-Destructed . | . . . . Prevented . | . . . . Kills | -11 -10 -9 -9 ------- Run | Yrd Mat Mat Sto Combat Hostiles Destroyed 19 | . 7 11 1 Melee 1 | . . . 1 Guns 18 | . 7 11 . Classes Destroyed 3 | . 1 2 . Grunt 15 | . 7 8 . Brawler 2 | . . 1 1 Sentry 2 | . . 2 . Best Kill Streak 4 | . 3 4 1 Combat Bots Only 4 | . 3 4 1 Max Kills in Single Turn 1 | . 1 1 1 Gunslinging . | . . . . Exploded . | . . . . Melee 1 | . . . 1 Uniques/NPCs Destroyed . | . . . . Combat | -11 -10 -9 -9 -------- Run | Yrd Mat Mat Sto Hostile Shots Fired 193 | . 29 94 70 Missed 48 | . 6 22 20 Damage Taken 1960 | . 294 928 738 Core 467 | . 67 229 171 Absorbed by Shields . | . . . . Redirected to Shielding 19 | . 19 . . Core Remaining (%) 86 | 100 73 . . Volleys Fired 74 | . 19 45 10 Largest 2 | . 2 2 2 Hottest 130 | . 130 130 40 Shots Fired 143 | . 37 89 17 Gun 143 | . 37 89 17 Cannon . | . . . . Launcher . | . . . . Special . | . . . . Kinetic 31 | . . 14 17 Thermal 112 | . 37 75 . Explosive . | . . . . Electromagnetic . | . . . . Robot Hit Streak 12 | . 7 12 4 Robot Miss Streak 5 | . 3 5 2 Penetration Max . | . . . . Secondary Targets . | . . . . Shots Hit Robots 94 | . 25 57 12 Core Hits 35 | . 13 17 5 Critical Kills . | . . . . Critical Parts Destroyed . | . . . . Critical Strikes 5 | . 1 4 . Burn 5 | . 1 4 . Melee Attacks . | . . . . Impact . | . . . . Slashing . | . . . . Piercing . | . . . . Sneak Attacks . | . . . . Combat Hostiles . | . . . . Follow-up Attacks . | . . . . Damage Inflicted 1348 | . 376 851 121 Guns 1344 | . 376 851 117 Cannons . | . . . . Explosions . | . . . . Melee . | . . . . Ramming 4 | . . . 4 Kinetic 175 | . . 58 117 Thermal 1169 | . 376 793 . Explosive . | . . . . Electromagnetic . | . . . . Impact . | . . . . Slashing . | . . . . Piercing . | . . . . Highest Corruption 7 | . . 7 7 Average Corruption 6 | . . 6 7 Corruption Purged . | . . . . Corruption Blocked . | . . . . Effects 7 | . . 3 4 Message Errors 1 | . . 1 . Matter Fused 1 | . . 1 . Heat Flow Errors 2 | . . 1 1 Energy Discharges 1 | . . . 1 Weapon Failures 2 | . . . 2 Overload Shots . | . . . . Overflow Damage . | . . . . Projectiles . | . . . . Explosions . | . . . . Melee . | . . . . Knockbacks . | . . . . Impact . | . . . . Kinetic . | . . . . Secondary . | . . . . Self-Inflicted Damage . | . . . . Shots . | . . . . Rammed 3 | . . . 3 Targets Rammed 4 | . . . 4 Kicked . | . . . . Crushed 1 | . . . 1 Highest Temperature 402 | . 402 382 155 Average Temperature 144 | . 163 130 93 Received Heat Transfer 834 | . 165 429 240 Effects 4 | . 4 . . Energy Bleed 1 | . 1 . . Interference 2 | . 2 . . Damage (minor) 1 | . 1 . . Siege Activations . | . . . . Robots Corrupted . | . . . . Combat Hostiles . | . . . . Parts Fried . | . . . . Impact Corruptions . | . . . . Robots Melted . | . . . . Combat Hostiles . | . . . . Parts Melted 13 | . 2 11 . Heat Transferred 3182 | . 999 2183 . Parts Sabotaged . | . . . . Parts Stolen . | . . . . Parts Stripped . | . . . . Power Chain Reactions . | . . . . Alert | -11 -10 -9 -9 ------- Run | Yrd Mat Mat Sto Peak Influence 338 | . 216 338 65 Initial 91 | . . 91 50 Average 124 | . 81 184 55 Maximum Alert Level 1 | . 1 1 . Low Security (%) 74 | 100 85 59 100 Level 1 25 | . 14 40 . Level 2 . | . . . . Level 3 . | . . . . Level 4 . | . . . . Level 5 . | . . . . High Security . | . . . . Max Security . | . . . . Squads Dispatched 3 | . 2 1 . Investigation . | . . . . Extermination . | . . . . Reinforcement 3 | . 2 1 . Assault . | . . . . Garrison . | . . . . Intercept . | . . . . Searches Triggered . | . . . . Construction Impeded . | . . . . Haulers Reinforced . | . . . . Active Scanning Responses . | . . . . Cargo Convoy Interrupts . | . . . . Stealth | -11 -10 -9 -9 --------- Run | Yrd Mat Mat Sto Distress Signals 2 | . 2 . . Communications Jammed . | . . . . Distress Signals . | . . . . Times Spotted 35 | . 14 13 8 Peak Tracking Total 8 | . 4 5 8 Tactical Retreats 3 | . 2 1 . Traps | -11 -10 -9 -9 ------- Run | Yrd Mat Mat Sto Traps Triggered . | . . . . Indirectly . | . . . . Trap Hack Attempts . | . . . . Triggered . | . . . . Disarmed . | . . . . Reprogrammed . | . . . . Reused . | . . . . Traps Extracted . | . . . . Installed . | . . . . Triggered . | . . . . Machines | -11 -10 -9 -9 ---------- Run | Yrd Mat Mat Sto Machines Disabled . | . . . . Max in Single Turn . | . . . . Machines Repaired . | . . . . Machines Dismantled . | . . . . Machines Sabotaged . | . . . . Overloaded Fab Kills . | . . . . Hacking | -11 -10 -9 -9 --------- Run | Yrd Mat Mat Sto Machines Accessed 4 | . 1 3 . Terminals 2 | . . 2 . Fabricators . | . . . . Repair Stations . | . . . . Recycling Units 1 | . 1 . . Scanalyzers 1 | . . 1 . Garrison Access . | . . . . Total Hacks 8 | . 1 7 . Successful 4 | . 1 3 . Failed 4 | . . 4 . Catastrophic 1 | . . 1 . Database Lockouts . | . . . . Manual . | . . . . Terminals 4 | . . 4 . Fabricators . | . . . . Repair Stations . | . . . . Recycling Units 1 | . 1 . . Scanalyzers 3 | . . 3 . Garrison Access . | . . . . Terminal Hacks 1 | . . 1 . Terminal Index 1 | . . 1 . Fabricator Hacks . | . . . . Repair Station Hacks . | . . . . Recycling Unit Hacks 1 | . 1 . . Retrieve Components 1 | . 1 . . Scanalyzer 2 | . . 2 . Insert Component 1 | . . 1 . Analyze 1 | . . 1 . Garrison Access Hacks . | . . . . Unauthorized Hacks . | . . . . Terminals . | . . . . Fabricators . | . . . . Repair Stations . | . . . . Recycling Units . | . . . . Scanalyzers . | . . . . Garrison Access . | . . . . Data Cores Recovered . | . . . . Used . | . . . . Hacking Detections 3 | . . 3 . Full Trace Events . | . . . . Feedback Events . | . . . . Feedback Blocked . | . . . . Robot Schematics Acquired . | . . . . Robots Built . | . . . . Authchips . | . . . . Time . | . . . . Total Robot Build Rating . | . . . . Part Schematics Acquired 1 | . . 1 . Parts Built . | . . . . Authchips . | . . . . Time . | . . . . Total Part Build Rating . | . . . . Parts Repaired . | . . . . Time . | . . . . Parts Recycled . | . . . . Recycled Matter . | . . . . Retrieved Matter . | . . . . Retrieved Components 1 | . 1 . . Parts Scanalyzed 1 | . . 1 . Part Schematics Acquired 1 | . . 1 . Parts Damaged . | . . . . Bothacking | -11 -10 -9 -9 ------------ Run | Yrd Mat Mat Sto Used RIF Installer . | . . . . Robots Hacked . | . . . . Non-combat . | . . . . Combat . | . . . . Robot Hacks Applied . | . . . . Relay Couplers Released . | . . . . Fabnet Peak Effective % . | . . . . Robots Rewired . | . . . . Allies Hacked . | . . . . Hacks Repelled . | . . . . Allies | -11 -10 -9 -9 -------- Run | Yrd Mat Mat Sto Total Allies . | . . . . Largest Group . | . . . . Highest-Rated Group . | . . . . Highest-Rated Ally . | . . . . Total Orders . | . . . . Ally Attacks . | . . . . Total Damage . | . . . . Kills . | . . . . Allies Corrupted . | . . . . Allies Melted . | . . . . Intel | -11 -10 -9 -9 ------- Run | Yrd Mat Mat Sto Robot Analysis Total . | . . . . Derelict Logs Recovered . | . . . . Drone Launches . | . . . . Drone Recoveries . | . . . . Exploration | -11 -10 -9 -9 ------------- Run | Yrd Mat Mat Sto Turns Passed 987 | 78 310 502 97 Spaces Moved 507 | 53 163 251 40 Core 19 | 19 . . . Treads 94 | . . 54 40 Legs 394 | 34 163 197 . Wheels . | . . . . Hover . | . . . . Flight . | . . . . Fastest Speed 50 | 50 120 120 160 Average Speed 127 | 117 120 128 160 Slowest Speed 200 | 200 120 160 160 Overloaded Moves . | . . . . Propulsion Burnouts . | . . . . Robots Hopped . | . . . . Cave-ins Triggered . | . . . . Exploration Rate (%) 15 | 3 30 19 9 Regions Visited 3 Branch Regions 1 Pre-discovered Areas . | . . . . Known Exits Taken . | . . . . Unknown Exits Taken 3 | 1 1 1 . Scrap Searched . | . . . . Spaces Dug . | . . . . Terrain Destroyed . | . . . . Melee . | . . . . Projectile . | . . . . AOE . | . . . . Terrain Rammed . | . . . . Walls Destroyed . | . . . . Machines Disabled . | . . . . Actions | -11 -10 -9 -9 --------- Run | Yrd Mat Mat Sto Total 702 | 68 239 341 54 Wait 67 | . 39 28 . Move 504 | 52 162 250 40 Hop . | . . . . Pick Up 23 | 10 9 4 . Fast Attach . | . . . . Attach 19 | 6 2 11 . Detach . | . . . . Swap 8 | . 5 3 . Drop 3 | . 3 . . Fire 74 | . 19 45 10 Melee . | . . . . Ram . | . . . . Kick . | . . . . Crush 4 | . . . 4 Escape Stasis . | . . . . Rewire . | . . . . Trap . | . . . . Miscellaneous . | . . . . Route ------- -11/Scrapyard -10/Materials -9/Materials -9/Storage History --------- Turn | Location | Event 56 | -11/Scrapyard | Discovered new exit (range 15) 79 | -11/Scrapyard | Entered Materials 308 | -10/Materials | Build established: Mutant 374 | -10/Materials | Discovered new exit (range 12) 389 | -10/Materials | Entered another Materials area 389 | -9/Materials | Evolved 2 slots: Propulsion x2 780 | -9/Materials | Core integrity fell below 50% 812 | -9/Materials | Lost 7 parts (1p2n1u3w) 881 | -9/Materials | Discovered new exit (range 6) 891 | -9/Materials | Entered Storage 966 | -9/Storage | Core integrity fell below 20% 988 | -9/Storage | Destroyed by G-34 Mercenary with Small Laser Last Messages --------------- 00922_ K-01 Serf collects debris. 00938_ System corrupted: Lgt. Assault Rifle jammed. 00963_ System corrupted: Heat flow error (+189). 00966_ C-30 ARC bursts open, deploying its payload. 00966_ B-36 Bruiser unfolds itself. 00966_ G-34 Mercenary unfolds itself. 00974_ Imp. Ion Engine destroyed. 00976_ Lgt. Treads destroyed. 00978_ System corrupted: Lgt. Assault Rifle jammed. 00979_ Assault Rifle destroyed. 00982_ Lgt. Assault Rifle destroyed. 00982_ Slammed into B-36 Bruiser. 00986_ Crushed B-36 Bruiser. 00986_ B-36 Bruiser destroyed. 00987_ Acquired 17 matter. 00987_ Slammed into Y-45 Defender. 00988_ Lgt. Treads destroyed. Map ----- +----------------------------------------------------+ | | | | | | | | | | | | | ????????????????????????????????????????????????? | | ????????????????????????????????????????????????? | | ????????????????????????????????????????????????? | | ????????????????????????????????????????????????? | | ????????????????????????????????????????????????? | | ????????????????????????????????????????????????? | | ????????????????????????????????????????????????? | | ????????????????????????????????????????????????? | | ??????????????????????????????????#####?????????? | | ??????????????????????????????????# #?????????? | | ??????????????????????????????????# #?????????? | | ??????????????????????????????????# #?????????? | | ??????????????????????????????????# #?????????? | | ??????????????????????????????????# #?????????? | | ??????????????????????????????????# #?????????? | | ????????????????????????########### #?????????? | | ????????????????????????# #?????????? | | ????????????????????????# #?????????? | | ????????????????????????#Y #?????????? | | ????????????????????????#@gY###########?????????? | | ????????????????????????#Y g#? #?????????? | | ????????????????????????# #? #?????????? | | ????????????????????????# # """"??????????? | | ????????????????????????# # """"??????????? | | ????????????????????????# + """"??????????? | | ?????????????????######## # """"??????????? | | ??????????????# % # #?????????? | | ??????????????+ #? #?????????? | | ??????????????# #?# #######?????????? | | ??????????????#####+#########??##???????????????? | | ????????????????? ?????????????????????????????? | | ???????????????# ??????????????????????????????? | | ???????????????#????????????????????????????????? | | ????????????????????????????????????????????????? | | ????????????????????????????????????????????????? | | ????????????????????????????????????????????????? | | ????????????????????????????????????????????????? | | ????????????????????????????????????????????????? | | ????????????????????????????????????????????????? | | ????????????????????????????????????????????????? | | ????????????????????????????????????????????????? | | ????????????????????????????????????????????????? | | ????????????????????????????????????????????????? | | ????????????????????????????????????????????????? | +----------------------------------------------------+ Best States ------------- Heat Dissipation 42 Energy Generation 14 Energy Capacity 280 Matter Stores 300 Matter Capacity 300 Sight Range 16 Terrain Scan Density 10 Propulsion Shielding 33 Evasion (%) 55 Recoil Reduction 2 Item Schematics ----------------- Lgt. Assault Rifle | -9/Materials | Scanalyzed Robot Schematics ------------------ None Fabricated ------------ Nothing Alien Tech Used ----------------- None Achievements -------------- None Challenges ------------ None Game ------ Seed FlakAlphaShifter Manual? 0 Play Time 00:13:08 Cumulative 6.2 hours Start 2024.04.03 @ 13:09:27 End 2024.04.03 @ 13:22:17 Sessions 1 Manual Loads 0 Difficulty Rogue Special Mode None Game No. 10 Rogue 10 Adventurer 0 Explorer 0 Win Type - Total 0 Types 0/0/0/0/0/0/0/0/0 Lore% 14 Gallery% 12 Achievement% 12 Wizard Run 0 Options --------- Layout 1 ASCII 0 Keyboard 0 Movement Arrows Keybinds 0 Fullscreen 1 Font 24/Smallcaps Map View 50x35 Zoom Use 0% Tactical HUD 1 Map Filters NONE Filters NONE Steam 1 RUN: 526bf5e5-cd8b-4c01-a768-dd35df9a81f3